bitfinex/quotes_BTCUSD_20250523
["timestamp","ask_amount","ask_price","bid_price","bid_amount"]
[1747981342250,0.00914258,110490.0,110480.0,6.90794106]
[1747981342639,0.01819292,110490.0,110480.0,6.90794106]
[1747981342815,0.01819276,110490.0,110480.0,6.90794106]
[1747981343378,0.0272431,110490.0,110480.0,6.90794106]
[1747981343937,0.01819276,110490.0,110480.0,6.90794106]
[1747981344157,0.00914258,110490.0,110480.0,6.90794106]
[1747981344381,0.01819276,110490.0,110480.0,6.90794106]
[1747981344618,0.21730554,110490.0,110480.0,6.18363518]
[1747981344850,0.19920543,110490.0,110480.0,5.98450462]
[1747981345053,0.19920543,110490.0,110480.0,6.24388675]
[1747981345254,0.19920543,110490.0,110480.0,5.85214119]
[1747981345468,0.19920543,110490.0,110480.0,6.12334119]
[1747981346984,0.19920543,110490.0,110480.0,5.78334119]
[1747981347813,0.19920543,110490.0,110480.0,5.81394119]
[1747981348439,0.19920543,110490.0,110480.0,5.84494119]
[1747981348946,0.19920543,110490.0,110480.0,6.30345413]
[1747981349171,0.19920543,110490.0,110480.0,6.31250521]
[1747981349551,0.19920543,110490.0,110480.0,6.29440297]
[1747981349761,0.19920543,110490.0,110480.0,6.30345413]
[1747981350096,0.21730554,110490.0,110480.0,5.86518427]
[1747981350293,0.21730554,110490.0,110480.0,6.40205077]
[1747981350423,0.21730554,110490.0,110480.0,6.41110177]
[1747981350826,0.21730554,110490.0,110480.0,6.20292029]
[1747981351026,0.20825561,110490.0,110480.0,5.92266888]
[1747981351238,0.19920543,110490.0,110480.0,5.93444675]
[1747981351653,0.19920543,110490.0,110480.0,5.94349808]
[1747981351967,0.19920543,110490.0,110480.0,5.93444675]
[1747981352202,0.19920543,110490.0,110480.0,5.85609286]
[1747981352362,0.19920543,110490.0,110480.0,5.93444675]
[1747981352579,0.19920543,110490.0,110480.0,5.94349816]
[1747981352778,0.19920543,110490.0,110480.0,5.93444675]
[1747981352973,0.19920543,110490.0,110480.0,5.66328675]
[1747981353197,0.19920543,110490.0,110480.0,5.93444675]
[1747981353400,0.19920543,110490.0,110480.0,5.94349816]
[1747981353625,0.19015509,110490.0,110480.0,5.94349816]
[1747981354686,0.19015509,110490.0,110480.0,5.21609816]
[1747981354889,0.19015509,110490.0,110480.0,5.93129816]
[1747981355388,0.1811045,110490.0,110480.0,5.92224675]
[1747981355800,0.1811045,110490.0,110480.0,5.93129816]
[1747981356256,0.1811045,110490.0,110480.0,5.94034949]
[1747981357423,0.1811045,110490.0,110480.0,6.3898111]
[1747981357844,0.1811045,110490.0,110480.0,6.38075986]
[1747981358821,0.1811045,110490.0,110480.0,6.3898111]
[1747981359638,0.1811045,110490.0,110480.0,5.87104684]
[1747981359860,0.1811045,110490.0,110480.0,6.3898111]
[1747981360706,0.19015501,110490.0,110480.0,6.39886226]
[1747981360902,0.19015501,110490.0,110480.0,6.40791334]
[1747981361544,0.19015501,110490.0,110480.0,6.40791293]
[1747981361742,0.00914266,110490.0,110480.0,6.40791243]
[1747981361948,0.01819292,110490.0,110480.0,6.40791243]
[1747981362174,0.02724334,110490.0,110480.0,6.40791243]
[1747981362628,0.01819292,110490.0,110480.0,6.40791243]
[1747981362930,0.00914266,110490.0,110480.0,6.40791243]
[1747981363058,0.01819292,110490.0,110480.0,6.40791243]
[1747981363258,0.01819284,110490.0,110480.0,6.40791243]
[1747981363565,9.265e-05,110490.0,110480.0,6.40791243]
[1747981363749,0.02714767,110500.0,110490.0,0.25590348]
[1747981364000,0.01809831,110500.0,110490.0,5.7824433]
[1747981364143,0.03619694,110500.0,110490.0,5.7824433]
[1747981364341,0.21719298,110500.0,110490.0,5.76434303]
[1747981364547,0.19909451,110500.0,110490.0,5.76434303]
[1747981364884,0.19004507,110500.0,110490.0,5.76434303]
[1747981365342,0.19204507,110500.0,110490.0,5.58333118]
[1747981365527,0.19004507,110500.0,110490.0,5.58333118]
[1747981365747,0.19204507,110500.0,110490.0,5.24557877]
[1747981365957,0.19204507,110500.0,110490.0,6.12635303]
[1747981366162,0.02009896,110500.0,110490.0,6.15350348]
[1747981366367,0.03014807,110500.0,110490.0,6.15350348]
[1747981366590,0.02109847,110500.0,110490.0,6.15350348]
[1747981366969,0.03014807,110500.0,110490.0,6.15350348]
[1747981367138,0.01909847,110500.0,110490.0,6.15350348]
[1747981367336,0.02814799,110500.0,110490.0,6.15350348]
[1747981367577,0.02214799,110500.0,110490.0,6.15350348]
[1747981367945,0.03119751,110500.0,110490.0,6.15350348]
[1747981368594,0.0402472,110500.0,110490.0,6.15350348]
[1747981368872,0.21219356,110500.0,110490.0,6.13540337]
[1747981369085,0.21219356,110500.0,110490.0,6.14445355]
[1747981369525,0.21219356,110500.0,110490.0,6.12635303]
[1747981369739,0.19909476,110500.0,110490.0,5.38432641]
[1747981369910,0.19909476,110500.0,110490.0,6.14151067]
[1747981370127,0.19909476,110500.0,110490.0,6.19011177]
[1747981370335,0.19909476,110500.0,110490.0,6.38017404]
[1747981370537,0.19909476,110500.0,110490.0,5.86140978]
[1747981370870,0.19909476,110500.0,110490.0,5.65324641]
[1747981370996,0.19004516,110500.0,110490.0,6.17201067]
[1747981371206,0.2531488,110500.0,110490.0,5.26208085]
[1747981371442,0.2531488,110500.0,110490.0,5.79258298]
[1747981371443,0.2842488,110500.0,110490.0,5.79258298]
[1747981371634,0.3142488,110500.0,110490.0,5.51866]
[1747981371838,0.3142488,110500.0,110490.0,3.03531]
[1747981372079,0.3142488,110500.0,110490.0,1.92929213]
[1747981372280,0.3142488,110500.0,110490.0,1.06921213]
[1747981372494,0.3142488,110500.0,110490.0,1.32859426]
[1747981372735,0.24209547,110500.0,110490.0,1.32859426]
[1747981373661,0.24209547,110500.0,110490.0,0.80983]
[1747981373893,0.24209547,110500.0,110490.0,0.53871]
[1747981374108,0.24209547,110500.0,110490.0,0.89251213]
[1747981375177,0.67164103,110500.0,110490.0,0.89251213]
[1747981375383,0.67164103,110500.0,110490.0,0.63313]
[1747981375909,0.67164103,110500.0,110490.0,0.89251213]
[1747981376751,0.67164103,110500.0,110490.0,1.33659213]
[1747981380479,0.58209547,110500.0,110490.0,6.48150426]
[1747981380682,0.55209547,110500.0,110490.0,6.48150426]
[1747981380868,0.55209547,110500.0,110490.0,6.22212213]
[1747981381070,0.58279547,110500.0,110490.0,5.96274]
[1747981381357,0.58279547,110500.0,110490.0,6.22212213]
[1747981382560,0.52099547,110500.0,110490.0,6.48150426]
[1747981383266,0.18099547,110500.0,110490.0,6.48150426]
[1747981385788,0.59159547,110500.0,110490.0,6.27437534]
[1747981386198,0.59159547,110500.0,110490.0,6.01499321]
[1747981387205,0.59159547,110500.0,110490.0,6.27437534]
[1747981387413,0.59159547,110500.0,110490.0,6.01499321]
[1747981387614,0.59159547,110500.0,110490.0,5.58706321]
[1747981387831,0.65519547,110500.0,110490.0,5.41836321]
[1747981388233,0.62259547,110500.0,110490.0,5.41836321]
[1747981389049,0.59159547,110500.0,110490.0,5.41836321]
[1747981389309,0.59159547,110500.0,110490.0,5.67774534]
[1747981389510,0.59159547,110500.0,110490.0,5.71034534]
[1747981390260,0.59159547,110500.0,110490.0,5.67774534]
[1747981391880,0.59159547,110500.0,110490.0,5.71054534]
[1747981392026,0.59159547,110500.0,110490.0,5.67774534]
[1747981392632,0.59159547,110500.0,110490.0,1.47642108]
[1747981392837,0.65509547,110500.0,110490.0,0.80406321]
[1747981393042,0.65509547,110500.0,110490.0,1.13814321]
[1747981393897,0.59159547,110500.0,110490.0,6.28305534]
[1747981394500,0.59159547,110500.0,110490.0,6.02367321]
[1747981394715,0.59159547,110500.0,110490.0,1.45574321]
[1747981394916,0.62369547,110500.0,110490.0,1.45574321]
[1747981395770,0.65389547,110500.0,110490.0,0.78226108]
[1747981395979,0.65389547,110500.0,110490.0,1.05346108]
[1747981396758,1.08344103,110500.0,110490.0,0.60756108]
[1747981396985,1.08344103,110500.0,110490.0,0.87876108]
[1747981397370,0.67284103,110500.0,110490.0,0.60756108]
[1747981397551,0.67284103,110500.0,110490.0,0.87876108]
[1747981397975,0.67284103,110500.0,110490.0,0.15488108]
[1747981398181,0.67284103,110500.0,110490.0,0.87876108]
[1747981398440,1.44836254,110500.0,110490.0,0.45268]
[1747981398579,1.35884103,110500.0,110490.0,0.72388]
[1747981401407,0.01810388,110470.0,110460.0,0.25938213]
[1747981401583,0.33339018,110470.0,110460.0,1.1144]
[1747981401949,0.18104462,110470.0,110460.0,1.1144]
[1747981402368,0.59164462,110470.0,110460.0,0.64986213]
[1747981402569,0.59164462,110470.0,110460.0,1.37382213]
[1747981403027,0.59164462,110470.0,110460.0,1.11544]
[1747981403243,0.65614462,110470.0,110460.0,1.11544]
[1747981403445,0.74569018,110470.0,110460.0,1.11544]
[1747981404093,0.74569018,110470.0,110460.0,0.84424]
[1747981404306,0.74569018,110470.0,110460.0,1.11544]
[1747981404519,0.68119018,110470.0,110460.0,1.78282213]
[1747981404727,0.59164462,110470.0,110460.0,1.78282213]
[1747981404935,0.59164462,110470.0,110460.0,1.33695588]
[1747981405152,0.59164462,110470.0,110460.0,5.81448613]
[1747981405626,0.59164462,110470.0,110460.0,5.84638613]
[1747981406052,0.59164462,110470.0,110460.0,6.11762613]
[1747981406277,0.59164462,110470.0,110460.0,6.13216698]
[1747981411266,0.59164462,110470.0,110460.0,6.39154911]
[1747981412741,0.59164462,110470.0,110460.0,5.87278485]
[1747981412985,0.59164462,110470.0,110460.0,6.13216698]
[1747981413199,0.59164462,110470.0,110460.0,6.10026698]
[1747981413409,0.59164462,110470.0,110460.0,3.29776085]
[1747981413826,0.59164462,110470.0,110460.0,3.55714298]
[1747981414073,0.59164462,110470.0,110460.0,3.33096085]
[1747981414280,0.59164462,110470.0,110460.0,3.59034298]
[1747981414700,0.59164462,110470.0,110460.0,3.84972511]
[1747981414874,0.49164462,110470.0,110460.0,3.84972511]
[1747981415076,0.49164462,110470.0,110460.0,2.96726655]
[1747981415280,0.49164462,110470.0,110460.0,2.86956229]
[1747981415445,0.49164462,110470.0,110460.0,3.09844442]
[1747981416299,0.49164462,110470.0,110460.0,3.36968442]
[1747981416636,0.49164462,110470.0,110460.0,3.11030229]
[1747981416820,0.49164462,110470.0,110460.0,3.36968442]
[1747981417212,0.49164462,110470.0,110460.0,3.11030229]
[1747981417514,0.49164462,110470.0,110460.0,3.36968442]
[1747981417680,0.49164462,110470.0,110460.0,3.09844442]
[1747981417882,0.49164462,110470.0,110460.0,2.95852213]
[1747981418110,0.11254462,110470.0,110460.0,1.38908213]
[1747981418315,0.14424462,110470.0,110460.0,1.40094]
[1747981418528,0.14424462,110470.0,110460.0,1.66032213]
[1747981418968,0.14424462,110470.0,110460.0,1.64872213]
[1747981419568,0.14424462,110470.0,110460.0,1.09438213]
[1747981419716,0.14424462,110470.0,110460.0,1.36562213]
[1747981420682,0.14424462,110470.0,110460.0,0.835]
[1747981420683,0.23379018,110470.0,110460.0,0.835]
[1747981420905,0.23379018,110470.0,110460.0,1.10624]
[1747981421125,0.23579018,110470.0,110460.0,1.10624]
[1747981421337,0.0271675,110420.0,110410.0,0.35811347]
[1747981421557,0.00905747,110400.0,110390.0,0.49921123]
[1747981421799,0.01811544,110400.0,110390.0,4.75310839]
[1747981422009,0.02717283,110400.0,110390.0,5.54172376]
[1747981422214,0.03623072,110400.0,110390.0,5.55078238]
[1747981422431,0.01811503,110400.0,110390.0,5.55984059]
[1747981422647,0.00905739,110400.0,110390.0,5.55993324]
[1747981422859,0.01005739,110400.0,110390.0,5.56793324]
[1747981423068,0.02011495,110400.0,110390.0,6.4346975]
[1747981423306,0.01911495,110400.0,110390.0,5.90793324]
[1747981423514,0.01811495,110400.0,110390.0,6.09323835]
[1747981423634,0.001,110400.0,110390.0,6.10023835]
[1747981423843,0.1811102,110430.0,110410.0,0.23095]
[1747981424043,0.1811102,110430.0,110420.0,5.70811274]
[1747981424276,0.01811093,110430.0,110420.0,6.03439635]
[1747981424542,0.01811093,110430.0,110420.0,6.10665251]
[1747981424543,0.01811011,110430.0,110420.0,6.10665251]
[1747981424711,0.01811011,110430.0,110420.0,5.596944]
[1747981424914,0.00905493,110430.0,110420.0,6.11570826]
[1747981425230,0.19020887,110440.0,110430.0,0.22296554]
[1747981425451,0.19926331,110440.0,110430.0,5.26467206]
[1747981425840,0.19926331,110440.0,110430.0,5.2556168]
[1747981426102,0.19926331,110440.0,110430.0,5.34516236]
[1747981426593,0.19926331,110440.0,110430.0,5.35531019]
[1747981426762,0.19926331,110440.0,110430.0,5.35731019]
[1747981427146,0.19926331,110440.0,110430.0,5.34825501]
[1747981427550,0.19926331,110440.0,110430.0,5.15808947]
[1747981427755,0.19926331,110440.0,110430.0,5.16714489]
[1747981427952,0.01810913,110440.0,110430.0,5.36636553]
[1747981428241,0.19920293,110440.0,110430.0,5.35731043]
[1747981429426,0.19920293,110440.0,110430.0,5.34825509]
[1747981429827,0.19920293,110440.0,110430.0,5.35731035]
[1747981430027,0.01810913,110440.0,110430.0,5.36636536]
[1747981430230,0.00905444,110440.0,110430.0,5.35731035]
[1747981430440,0.01810913,110440.0,110430.0,5.37542063]
[1747981430865,0.19920293,110440.0,110430.0,4.83854609]
[1747981431060,0.19920293,110440.0,110430.0,5.35731035]
[1747981431465,0.01810863,110440.0,110430.0,5.37542046]
[1747981431786,0.0362171,110440.0,110430.0,5.37542046]
[1747981432017,0.04527179,110440.0,110430.0,5.36636553]
[1747981432232,0.03621784,110440.0,110430.0,5.36636553]
[1747981432601,0.20825745,110440.0,110430.0,5.35731035]
[1747981433988,0.01810896,110440.0,110430.0,5.37542046]
[1747981434200,0.00905419,110440.0,110430.0,5.37542046]
[1747981434411,0.0271625,110440.0,110430.0,5.37542046]
[1747981434638,0.02716242,110440.0,110430.0,5.37542046]
[1747981434851,0.21420432,110470.0,110450.0,0.24582575]
[1747981435068,0.21420432,110470.0,110460.0,5.74565211]
[1747981435267,0.18110432,110470.0,110460.0,5.74565211]
[1747981436029,0.18110432,110470.0,110460.0,5.77595211]
[1747981436424,0.18510432,110470.0,110460.0,5.77595211]
[1747981437169,0.18110432,110470.0,110460.0,5.77595211]
[1747981437351,0.18310432,110470.0,110460.0,5.77595211]
[1747981438524,0.18410432,110470.0,110460.0,5.77595211]
[1747981440195,0.18410432,110470.0,110460.0,5.50467211]
[1747981440439,0.18410432,110470.0,110460.0,5.74565211]
[1747981440673,0.24760432,110470.0,110460.0,5.34474298]
[1747981441245,0.21470432,110470.0,110460.0,5.60412511]
[1747981443369,0.24700432,110470.0,110460.0,3.05684298]
[1747981443617,0.24700432,110470.0,110460.0,1.40272298]
[1747981443853,0.24700432,110470.0,110460.0,2.13260298]
[1747981444344,0.21470432,110470.0,110460.0,2.13260298]
[1747981444750,0.21470432,110470.0,110460.0,2.39198511]
[1747981444894,0.24680432,110470.0,110460.0,2.39198511]
[1747981446394,0.21470432,110470.0,110460.0,2.39198511]
[1747981446927,0.21470432,110470.0,110460.0,1.87322085]
[1747981447130,0.21470432,110470.0,110460.0,2.39198511]
[1747981447705,0.62530432,110470.0,110460.0,2.39198511]
[1747981449122,0.59470432,110470.0,110460.0,2.42388511]
[1747981449925,0.59470432,110470.0,110460.0,2.61399917]
[1747981450125,0.59470432,110470.0,110460.0,2.43293816]
[1747981450333,0.42265182,110470.0,110460.0,2.63210427]
[1747981450540,0.44075504,110470.0,110460.0,3.00480427]
[1747981450783,0.4498071,110470.0,110460.0,3.00480427]
[1747981450979,0.45885933,110470.0,110460.0,3.00480427]
[1747981451379,0.4468071,110470.0,110460.0,3.00480427]
[1747981451861,0.4478071,110470.0,110460.0,3.00480427]
[1747981452738,0.44780702,110470.0,110460.0,3.00480427]
[1747981452912,0.45685908,110470.0,110460.0,3.00480427]
[1747981453149,0.44780809,110470.0,110460.0,2.9957518]
[1747981453360,0.61074891,110470.0,110460.0,2.98669908]
[1747981453581,0.61074891,110470.0,110460.0,3.01385715]
[1747981453983,0.61074891,110470.0,110460.0,3.0048046]
[1747981454197,0.42970429,110470.0,110460.0,3.01385715]
[1747981454388,0.42970388,110470.0,110460.0,3.11245518]
[1747981454614,0.43875611,110470.0,110460.0,3.10340271]
[1747981455103,0.43875611,110470.0,110460.0,3.11245518]
[1747981455281,0.43875611,110470.0,110460.0,3.10340271]
[1747981456281,0.4297033,110470.0,110460.0,3.11245518]
[1747981456541,0.0281552,110470.0,110460.0,3.11245518]
[1747981456763,0.0191033,110470.0,110460.0,3.11245518]
[1747981456989,0.4106,110480.0,110470.0,0.62814116]
[1747981457213,0.59165332,110500.0,110480.0,0.54462042]
[1747981457419,0.18105332,110500.0,110490.0,6.26182396]
[1747981457623,0.2081442,110500.0,110490.0,6.30207438]
[1747981457779,0.01809896,110500.0,110490.0,6.31112464]
[1747981457991,0.19909443,110500.0,110490.0,6.39161994]
[1747981458628,0.00904911,110500.0,110490.0,6.44042021]
[1747981458834,0.20821876,110510.0,110500.0,0.57628609]
[1747981459102,0.19917014,110510.0,110500.0,5.13705975]
[1747981459309,0.19012127,110510.0,110500.0,5.13705975]
[1747981459956,0.19012127,110510.0,110500.0,5.12800998]
[1747981460348,0.19412127,110510.0,110500.0,5.13705975]
[1747981460745,0.19412127,110510.0,110500.0,4.514087]
[1747981460968,0.19412127,110510.0,110500.0,4.77346913]
[1747981461099,0.19712127,110510.0,110500.0,4.77346913]
[1747981462384,0.19712127,110510.0,110500.0,5.01296913]
[1747981462614,0.19712127,110510.0,110500.0,5.36750998]
[1747981463585,0.19712127,110510.0,110500.0,5.55755522]
[1747981463755,0.19712127,110510.0,110500.0,5.58775522]
[1747981463933,0.19712127,110510.0,110500.0,5.59680482]
[1747981464525,0.19712127,110510.0,110500.0,5.58775522]
[1747981464876,0.18807232,110510.0,110500.0,5.59680491]
[1747981465223,0.18807232,110510.0,110500.0,5.60585443]
[1747981465873,0.18407232,110510.0,110500.0,5.60585443]
[1747981466290,0.18607232,110510.0,110500.0,5.59680491]
[1747981467036,0.18307232,110510.0,110500.0,5.59680491]
[1747981467449,0.18407232,110510.0,110500.0,5.41576944]
[1747981467863,0.18407232,110510.0,110500.0,5.37651975]
[1747981468069,0.21607232,110510.0,110500.0,5.36746998]
[1747981468495,0.21607232,110510.0,110500.0,5.10808785]
[1747981468761,0.21607232,110510.0,110500.0,5.37651975]
[1747981468975,0.21607232,110510.0,110500.0,5.36746998]
[1747981470930,0.21607232,110510.0,110500.0,5.75790998]
[1747981473398,0.21607232,110510.0,110500.0,5.49852785]
[1747981473610,0.21607232,110510.0,110500.0,5.48674998]
[1747981473858,0.21607232,110510.0,110500.0,6.21162998]
[1747981473859,0.24897232,110510.0,110500.0,6.21162998]
[1747981474399,0.24897232,110510.0,110500.0,6.19708913]
[1747981475003,0.24897232,110510.0,110500.0,5.47220913]
[1747981475189,0.24897232,110510.0,110500.0,6.19704913]
[1747981475385,0.21607232,110510.0,110500.0,6.19704913]
[1747981476217,0.24777232,110510.0,110500.0,6.19704913]
[1747981476430,0.24777232,110510.0,110500.0,6.12326213]
[1747981477188,0.19911245,110490.0,110480.0,0.01454085]
[1747981477460,0.24391185,110490.0,110480.0,0.8676]
[1747981477584,0.24391185,110490.0,110480.0,0.44508]
[1747981477786,0.33345741,110490.0,110480.0,0.44508]
[1747981478103,0.33345741,110490.0,110480.0,0.7162]
[1747981478909,0.33445741,110490.0,110480.0,0.7162]
[1747981479111,0.33545741,110490.0,110480.0,0.97558213]
[1747981479530,0.24591185,110490.0,110480.0,0.97558213]
[1747981479731,0.24591185,110490.0,110480.0,5.79796913]
[1747981480143,0.21371185,110490.0,110480.0,5.79796913]
[1747981480347,0.21471185,110490.0,110480.0,5.79796913]
[1747981483295,0.21471185,110490.0,110480.0,5.55223936]
[1747981484848,0.21471185,110490.0,110480.0,5.08176913]
[1747981485083,0.21471185,110490.0,110480.0,5.79812913]
[1747981486249,0.21471185,110490.0,110480.0,4.21074213]
[1747981486449,0.24621185,110490.0,110480.0,2.44784213]
[1747981487118,0.33575741,110490.0,110480.0,2.43574213]
[1747981487331,0.33575741,110490.0,110480.0,1.90516]
[1747981487537,0.33575741,110490.0,110480.0,2.17636]
[1747981489307,0.33575741,110490.0,110480.0,2.09516]
[1747981489514,0.33575741,110490.0,110480.0,2.35454213]
[1747981491178,0.33575741,110490.0,110480.0,1.48396]
[1747981491494,0.33575741,110490.0,110480.0,0.34]
[1747981491682,0.33575741,110490.0,110480.0,0.7164]
[1747981494374,0.33575741,110490.0,110480.0,0.4452]
[1747981494690,0.33575741,110490.0,110470.0,0.7304]
[1747981494691,0.25207948,110480.0,110470.0,0.7304]
[1747981494881,0.75222504,110480.0,110470.0,1.44689265]
[1747981496111,0.75222504,110480.0,110470.0,0.73049265]
[1747981496240,0.75222504,110480.0,110470.0,1.44697265]
[1747981496436,0.75222504,110480.0,110470.0,1.44701265]
[1747981497079,0.75222504,110480.0,110470.0,0.83577265]
[1747981497283,0.75222504,110480.0,110470.0,1.44701265]
[1747981497800,0.75622504,110480.0,110470.0,1.44701265]
[1747981498010,0.76022504,110480.0,110470.0,1.44701265]
[1747981498389,0.76022504,110480.0,110470.0,1.10701265]
[1747981498786,0.76022504,110480.0,110470.0,0.83577265]
[1747981499009,0.76022504,110480.0,110470.0,1.10701265]
[1747981499419,0.78737204,110480.0,110470.0,1.10701265]
[1747981499880,0.78737204,110480.0,110470.0,0.83577265]
[1747981500085,0.66409668,110470.0,110460.0,0.34]
[1747981500281,0.34304224,110470.0,110460.0,1.05648]
[1747981500505,0.25351389,110460.0,110450.0,4e-05]
[1747981500718,0.25351389,110460.0,110450.0,0.97590213]
[1747981500963,0.25351389,110460.0,110450.0,1.05652]
[1747981501173,0.75365945,110460.0,110450.0,1.05652]
[1747981502054,0.75365945,110460.0,110450.0,0.78528]
[1747981502261,0.75365945,110460.0,110450.0,1.05652]
[1747981503065,0.75465945,110460.0,110450.0,1.05652]
[1747981503544,0.75565945,110460.0,110450.0,1.05652]
[1747981503989,0.2298026,110440.0,110430.0,0.25942213]
[1747981504200,0.2298026,110440.0,110430.0,0.27128]
[1747981504413,0.2298026,110440.0,110430.0,0.53066213]
[1747981505267,0.2298026,110440.0,110430.0,1.36658213]
[1747981505681,0.1992026,110440.0,110430.0,6.14085126]
[1747981505882,0.1992026,110440.0,110430.0,6.22246913]
[1747981506090,0.1992026,110440.0,110430.0,6.22446913]
[1747981508284,0.1992026,110440.0,110430.0,6.19196913]
[1747981508491,0.1992026,110440.0,110430.0,2.96438213]
[1747981508706,0.2599026,110440.0,110430.0,1.4482]
[1747981508951,0.34944816,110440.0,110430.0,1.44724]
[1747981509386,0.34944816,110440.0,110430.0,1.44824]
[1747981509800,0.34944816,110440.0,110430.0,1.44724]
[1747981510003,0.35044816,110440.0,110430.0,1.44724]
[1747981510228,0.35144816,110440.0,110430.0,1.44724]
[1747981511701,0.35144816,110440.0,110430.0,1.70662213]
[1747981511906,0.35144816,110440.0,110430.0,0.99002213]
[1747981512114,0.35144816,110440.0,110430.0,1.70690213]
[1747981512326,0.35144816,110440.0,110430.0,1.44752]
[1747981513192,0.35144816,110440.0,110430.0,1.70690213]
[1747981513400,0.35144816,110440.0,110430.0,1.44752]
[1747981514209,0.35144816,110440.0,110430.0,1.70690213]
[1747981514620,0.35144816,110440.0,110430.0,1.44752]
[1747981516041,0.35144816,110440.0,110430.0,1.70690213]
[1747981516197,0.17035436,110440.0,110430.0,1.70690213]
[1747981517997,0.17035436,110440.0,110430.0,1.44752]
[1747981518197,0.1901052,110440.0,110430.0,4e-05]
[1747981518658,0.2001052,110440.0,110430.0,0.7314]
[1747981518873,0.8779964,110440.0,110430.0,0.7314]
[1747981519093,0.8769964,110440.0,110430.0,0.7314]
[1747981519347,0.84724556,110440.0,110430.0,0.7314]
[1747981519557,0.16124556,110440.0,110430.0,0.7314]
[1747981519760,0.16624556,110440.0,110430.0,0.7324]
[1747981519966,0.15524556,110440.0,110430.0,0.7324]
[1747981520179,0.16124556,110440.0,110430.0,0.7324]
[1747981522119,0.13114556,110440.0,110430.0,1.0724]
[1747981522336,0.13114556,110440.0,110430.0,1.33178213]
[1747981522554,0.16164556,110440.0,110430.0,0.83288]
[1747981523871,0.16164556,110440.0,110430.0,1.09226213]
[1747981524091,0.16164556,110440.0,110430.0,0.83288]
[1747981524546,0.13114556,110440.0,110430.0,1.09226213]
[1747981524981,0.13114556,110440.0,110430.0,0.83288]
[1747981525399,0.13114556,110440.0,110430.0,1.09226213]
[1747981525663,0.10054556,110440.0,110430.0,1.12226213]
[1747981526293,0.10054556,110440.0,110430.0,0.86288]
[1747981526702,0.10054556,110440.0,110430.0,1.12226213]
[1747981527333,0.10054556,110440.0,110430.0,0.63042213]
[1747981527540,0.13144556,110440.0,110430.0,1.38566213]
[1747981528810,0.13144556,110440.0,110430.0,1.41786213]
[1747981529222,0.10054556,110440.0,110430.0,1.41786213]
[1747981530675,0.09454556,110440.0,110430.0,1.41786213]
[1747981531101,0.09354556,110440.0,110430.0,1.41686213]
[1747981531306,0.09354556,110440.0,110430.0,1.67624426]
[1747981531523,0.003,110440.0,110430.0,1.70674426]
[1747981531740,0.00013885,110460.0,110430.0,1.64404426]
[1747981531998,0.08968441,110460.0,110450.0,0.63118213]
[1747981532632,0.00013885,110460.0,110450.0,0.63118213]
[1747981533074,0.00413885,110460.0,110450.0,0.63118213]
[1747981533302,0.00413885,110460.0,110450.0,0.66408213]
[1747981533924,0.00413885,110460.0,110450.0,0.4047]
[1747981534136,0.00413885,110460.0,110450.0,0.66408213]
[1747981534599,0.00513885,110460.0,110450.0,2.38368213]
[1747981534810,0.00513885,110460.0,110450.0,5.40585126]
[1747981535222,0.00413885,110460.0,110450.0,5.40585126]
[1747981535426,0.00013885,110460.0,110450.0,5.40585126]
[1747981535638,0.00413885,110460.0,110450.0,5.40585126]
[1747981535861,0.00613885,110460.0,110450.0,5.40585126]
[1747981536067,0.00013885,110460.0,110450.0,5.40585126]
[1747981536476,0.00513885,110460.0,110450.0,5.40585126]
[1747981536887,0.00513885,110460.0,110450.0,5.50993767]
[1747981537110,0.0328,110500.0,110480.0,0.032]
[1747981537321,0.03295351,110500.0,110490.0,1.77522213]
[1747981537532,0.12249907,110500.0,110490.0,1.77522213]
[1747981537743,0.08969907,110500.0,110490.0,1.80722213]
[1747981538445,0.08969907,110500.0,110490.0,1.51584]
[1747981538656,0.08969907,110500.0,110490.0,1.77522213]
[1747981539072,0.09369907,110500.0,110490.0,1.77522213]
[1747981539283,0.09669907,110500.0,110490.0,1.77522213]
[1747981539497,0.09369907,110500.0,110490.0,1.77522213]
[1747981539732,0.08969907,110500.0,110490.0,1.77522213]
[1747981539936,0.09269907,110500.0,110490.0,1.77522213]
[1747981540350,0.09269907,110500.0,110490.0,1.51584]
[1747981540560,0.09269907,110500.0,110490.0,1.24448]
[1747981540561,0.12359907,110500.0,110490.0,1.24448]
[1747981540793,0.15359907,110500.0,110490.0,1.51576]
[1747981541456,0.12359907,110500.0,110490.0,1.51576]
[1747981541667,0.12559907,110500.0,110490.0,1.77514213]
[1747981543153,0.09469907,110500.0,110490.0,1.80744213]
[1747981543519,0.09469907,110500.0,110490.0,6.28982913]
[1747981544144,0.09469907,110500.0,110490.0,6.030447]
[1747981544322,0.09469907,110500.0,110490.0,6.28982913]
[1747981545393,0.09469907,110500.0,110490.0,6.54921126]
[1747981545758,0.09469907,110500.0,110490.0,6.28982913]
[1747981546414,0.00515351,110500.0,110490.0,6.58151126]
[1747981546728,0.0332,110530.0,110490.0,6.58151126]
[1747981546729,0.002,110530.0,110510.0,0.0314]
[1747981546958,0.002,110530.0,110520.0,0.82140426]
[1747981546959,0.09205714,110530.0,110520.0,0.82140426]
[1747981547101,0.09205714,110530.0,110520.0,0.56202213]
[1747981548132,0.00251158,110530.0,110520.0,0.56202213]
[1747981548329,0.00351158,110530.0,110520.0,0.56202213]
[1747981548569,0.00251158,110530.0,110520.0,5.04440913]
[1747981548969,0.00351158,110530.0,110520.0,5.04440913]
[1747981549440,0.00551158,110530.0,110520.0,5.04440913]
[1747981550160,0.00551158,110530.0,110520.0,4.785027]
[1747981550161,0.00451158,110530.0,110520.0,4.785027]
[1747981550381,0.00451158,110530.0,110520.0,5.04440913]
[1747981550587,0.00651158,110530.0,110520.0,5.04440913]
[1747981550796,0.00651158,110530.0,110520.0,4.61082213]
[1747981551451,0.00651158,110530.0,110520.0,5.10970213]
[1747981551665,0.00651158,110530.0,110520.0,5.00485243]
[1747981552277,0.00651158,110530.0,110520.0,4.85028]
[1747981552498,0.00651158,110530.0,110520.0,5.10966213]
[1747981553293,0.00651158,110530.0,110520.0,5.14146213]
[1747981553495,0.00651158,110530.0,110520.0,4.88208]
[1747981553771,0.00651158,110530.0,110520.0,5.14146213]
[1747981553772,0.41711158,110530.0,110520.0,5.14146213]
[1747981553963,0.41711158,110530.0,110520.0,5.10966213]
[1747981555343,0.41711158,110530.0,110520.0,2.06126213]
[1747981555546,0.44721158,110530.0,110520.0,2.45170213]
[1747981555750,0.44721158,110530.0,110520.0,2.40670213]
[1747981555951,0.44721158,110530.0,110520.0,2.40674213]
[1747981556450,0.53675714,110530.0,110520.0,1.00128]
[1747981556669,0.56765714,110530.0,110520.0,0.39048]
[1747981557075,0.56765714,110530.0,110520.0,1.16044]
[1747981558549,0.15705714,110530.0,110520.0,1.16044]
[1747981559989,0.09605714,110530.0,110520.0,1.41982213]
[1747981560199,0.00651158,110530.0,110520.0,1.45012213]
[1747981560933,0.03761158,110530.0,110520.0,1.16044]
[1747981561764,0.03761158,110530.0,110520.0,0.88928]
[1747981561765,0.12715714,110530.0,110520.0,0.88928]